bitfinex-derivatives/quotes_SOLF0:USTF0_20250712
["timestamp","ask_amount","ask_price","bid_price","bid_amount"]
[1752310024031,6.1487,162.57,162.54,6.1494]
[1752310024225,6.1487,162.57,162.54,11.22108155]
[1752310024429,6.1487,162.57,162.54,5.07168155]
[1752310024627,3.38,162.56,162.55,11.22040393]
[1752310027226,3.38,162.56,162.55,11.21991455]
[1752310040127,3.38,162.56,162.55,7.63991455]
[1752310040536,3.38,162.56,162.55,11.10991455]
[1752310051635,3.38,162.56,162.55,1.49081455]
[1752310051843,3.33,162.55,162.54,5.00410999]
[1752310054542,3.33,162.55,162.54,11.15360999]
[1752310060247,6.1478,162.59,162.56,6.1486]
[1752310060447,6.1478,162.59,162.57,1.49081455]
[1752310060646,58.980618,162.61,162.57,1.49081455]
[1752310060842,3.33,162.6,162.57,1.49081455]
[1752310061040,3.33,162.58,162.57,1.49081455]
[1752310061243,3.33,162.58,162.57,1.53029678]
[1752310062043,9.478,162.58,162.57,1.53029678]
[1752310064845,9.478,162.58,162.57,0.03948223]
[1752310067051,3.33,162.58,162.57,1.53029678]
[1752310067852,3.33,162.58,162.57,4.85029678]
[1752310068543,3.33,162.58,162.57,10.99869678]
[1752310069553,3.33,162.58,162.57,4.85029678]
[1752310070654,3.33,162.58,162.57,10.99869678]
[1752310070858,3.33,162.58,162.57,4.85029678]
[1752310071154,9.478,162.58,162.57,0.03948223]
[1752310077260,9.478,162.58,162.57,4.85029678]
[1752310077559,9.478,162.58,162.57,1.53029678]
[1752310078459,3.33,162.58,162.57,4.85029678]
[1752310080661,9.478,162.58,162.57,4.85029678]
[1752310080959,9.478,162.58,162.57,0.03948223]
[1752310081163,10.96881455,162.58,162.57,0.03948223]
[1752310082158,1.49081455,162.58,162.5,3.32]
[1752310082365,3.28,162.53,162.5,3.32]
[1752310082554,4.77081455,162.53,162.5,3.32]
[1752310082757,1.49081455,162.53,162.5,3.32]
[1752310082957,3.28,162.52,162.5,3.32]
[1752310083153,9.4305,162.52,162.5,3.32]
[1752310083357,3.28,162.51,162.5,3.32]
[1752310086661,3.28,162.54,162.49,3.35954255]
[1752310086864,3.28,162.52,162.49,0.03954255]
[1752310087265,9.4311,162.5,162.49,0.03954255]
[1752310092168,3.28,162.47,162.45,3.32]
[1752310092471,3.28,162.47,162.46,3.32]
[1752310094172,0.04134422,162.48,162.46,3.32]
[1752310094664,0.04134422,162.48,162.47,9.6522]
[1752310094870,3.57134422,162.48,162.47,9.6522]
[1752310096075,3.57134422,162.48,162.47,3.5]
[1752310096478,3.57134422,162.48,162.45,2.33191175]
[1752310096677,3.57134422,162.48,162.46,3.5]
[1752310097682,3.53,162.47,162.46,3.5]
[1752310097972,3.53,162.47,162.44,6.1532]
[1752310098173,3.53,162.47,162.46,3.5]
[1752310098381,3.53,162.47,162.44,6.1532]
[1752310098572,3.53,162.47,162.45,3.5]
[1752310099384,3.53,162.47,162.46,3.5]
[1752310105484,3.53,162.47,162.45,6.1529]
[1752310105691,3.53,162.47,162.45,3.5]
[1752310106085,3.53,162.47,162.43,2.33191175]
[1752310106285,3.53,162.47,162.45,3.5]
[1752310106488,3.53,162.46,162.45,3.5]
[1752310106688,3.57134422,162.48,162.46,6.1524]
[1752310106883,3.57134422,162.48,162.46,1.49303199]
[1752310107084,3.57134422,162.48,162.46,4.99303199]
[1752310108188,6.19324422,162.48,162.46,4.99303199]
[1752310108486,3.53,162.47,162.46,3.5]
[1752310115888,3.53,162.47,162.46,4.99303199]
[1752310116686,0.04134422,162.48,162.46,4.99303199]
[1752310116891,3.57134422,162.48,162.47,3.5]
[1752310117189,0.04134422,162.48,162.47,3.5]
[1752310117496,0.04134422,162.48,162.47,9.6522]
[1752310121996,0.04134422,162.48,162.47,11.98436819]
[1752310122995,3.53,162.53,162.47,5.83216819]
[1752310123294,3.53,162.52,162.51,3.5]
[1752310124595,3.53,162.53,162.51,3.5]
[1752310124799,3.45,162.54,162.53,3.27]
[1752310125999,3.45,162.54,162.53,9.4199]
[1752310126399,3.45,162.54,162.53,3.27]
[1752310128593,3.45,162.54,162.48,7.49654508]
[1752310128594,3.45,162.54,162.51,3.27]
[1752310129194,3.45,162.53,162.51,3.27]
[1752310135399,3.45,162.53,162.52,3.27]
[1752310138002,3.45,162.53,162.51,0.04404532]
[1752310139099,6.1503,162.52,162.51,0.04404532]
[1752310139405,9.6003,162.52,162.51,0.04404532]
[1752310141701,9.6003,162.52,162.45,2.33216819]
[1752310141702,6.1514,162.49,162.45,2.33216819]
[1752310141905,3.45,162.48,162.47,3.27]
[1752310142305,3.45,162.48,162.46,3.27]
[1752310142705,3.45,162.48,162.45,6.1528]
[1752310142706,3.45,162.48,162.47,3.27]
[1752310143904,3.45,162.48,162.44,3.27]
[1752310144106,3.45,162.48,162.45,6.1528]
[1752310144302,3.45,162.48,162.44,3.27]
[1752310144907,6.1525,162.47,162.45,3.27]
[1752310145105,3.45,162.46,162.45,3.27]
[1752310145607,3.45,162.46,162.42,3.27]
[1752310145807,3.45,162.46,162.44,3.27]
[1752310146512,3.45,162.45,162.44,3.27]
[1752310151912,3.45,162.45,162.43,9.4237]
[1752310152308,3.45,162.45,162.44,3.27]
[1752310153410,6.153,162.45,162.43,3.27]
[1752310153610,0.04332012,162.47,162.42,3.27]
[1752310153611,3.45,162.44,162.42,3.27]
[1752310154418,3.45,162.44,162.42,9.424]
[1752310154613,3.45,162.44,162.43,3.27]
[1752310163023,3.45,162.44,162.42,3.42506099]
[1752310163320,3.54,162.43,162.42,0.04506099]
[1752310163819,3.54,162.43,162.42,3.42506099]
[1752310170225,9.6937,162.43,162.42,0.04506099]
[1752310170618,2.33216819,162.43,162.34,2.33216819]
[1752310170821,6.1551,162.4,162.36,6.1564]
[1752310171021,3.54,162.39,162.37,3.38]
[1752310171223,3.54,162.39,162.38,3.38]
[1752310171728,3.54,162.38,162.34,3.38]
[1752310172024,3.54,162.38,162.31,2.33216819]
[1752310172231,3.54,162.38,162.35,3.38]
[1752310172523,3.54,162.38,162.36,3.38]
[1752310172825,6.2019468,162.38,162.36,3.38]
[1752310173025,3.54,162.37,162.33,6.1574]
[1752310173226,9.6962,162.37,162.35,3.38]
[1752310173429,9.6962,162.37,162.27,182.18437689]
[1752310173430,3.54,162.36,162.3,2.33216819]
[1752310173619,3.54,162.36,162.33,3.38]
[1752310173818,3.54,162.33,162.31,3.38]
[1752310174423,3.54,162.33,162.29,3.38]
[1752310175029,3.54,162.32,162.29,3.38]
[1752310177035,3.54,162.32,162.29,9.539]
[1752310177224,3.54,162.32,162.29,6.159]
[1752310177428,3.54,162.32,162.31,3.38]
[1752310180234,0.03910675,162.33,162.31,3.38]
[1752310180432,0.03910675,162.33,162.32,5.71216819]
[1752310180738,3.54,162.36,162.35,3.38]
[1752310181339,3.54,162.36,162.35,9.5367]
[1752310182233,0.04286867,162.37,162.35,6.1567]
[1752310182438,0.04286867,162.37,162.36,3.38]
[1752310182439,3.58286867,162.37,162.36,3.38]
[1752310183138,3.58286867,162.37,162.33,5.71216819]
[1752310183337,3.58286867,162.37,162.34,3.38]
[1752310183540,3.54,162.36,162.34,3.38]
[1752310184135,3.54,162.36,162.35,6.1565]
[1752310184442,3.54,162.36,162.35,9.5365]
[1752310186536,3.54,162.36,162.26,5.14409534]
[1752310186735,3.54,162.36,162.27,3.44]
[1752310186933,3.54,162.36,162.29,2.33660769]
[1752310187139,3.55,162.35,162.32,3.44]
[1752310187339,0.04047946,162.33,162.32,3.44]
[1752310187739,0.04047946,162.33,162.32,9.5976]
[1752310191441,0.04047946,162.33,162.32,11.93420769]
[1752310195740,0.04047946,162.33,162.32,9.5976]
[1752310195941,0.04047946,162.33,162.32,11.93420769]
[1752310196136,3.59047946,162.33,162.32,11.93420769]
[1752310198046,3.59047946,162.33,162.26,5.15070787]
[1752310198246,3.59047946,162.33,162.3,3.44]
[1752310198436,3.59047946,162.33,162.28,5.77664047]
[1752310198635,3.59047946,162.33,162.29,3.44]
[1752310200252,0.04047946,162.33,162.28,3.44]
[1752310200549,3.55,162.32,162.28,3.44]
[1752310200751,3.55,162.32,162.3,9.5986]
[1752310201146,3.55,162.32,162.31,3.44]
[1752310201546,3.55,162.32,162.3,9.5986]
[1752310202445,3.55,162.32,162.3,6.1586]
[1752310202652,3.55,162.32,162.31,3.44]
[1752310204550,3.55,162.32,162.3,9.5986]
[1752310205553,3.55,162.32,162.3,6.1586]
[1752310205754,3.55,162.32,162.31,3.44]
[1752310206147,3.55,162.32,162.31,9.5983]
[1752310207347,3.55,162.32,162.3,9.5985]
[1752310209253,3.55,162.32,162.31,3.44]
[1752310209653,3.55,162.32,162.3,9.5984]
[1752310210554,3.55,162.32,162.3,6.1584]
[1752310210854,3.55,162.32,162.31,6.1583]
[1752310211454,3.55,162.32,162.31,9.5983]
[1752310213255,3.55,162.32,162.31,3.44]
[1752310215364,3.55,162.32,162.3,6.1585]
[1752310215550,6.1579,162.32,162.3,3.36]
[1752310215858,3.34,162.31,162.3,3.36]
[1752310216760,9.4983,162.31,162.29,3.36]
[1752310216953,3.34,162.3,162.29,3.36]
[1752310219357,3.34,162.3,162.28,8.49663366]
[1752310219567,3.34,162.3,162.28,2.33743366]
[1752310219759,3.34,162.29,162.28,5.69743366]
[1752310220756,3.34,162.29,162.27,9.5196]
[1752310221862,3.34,162.29,162.28,3.36]
[1752310228064,3.34,162.29,162.27,9.5196]
[1752310228363,3.34,162.29,162.23,8.51070787]
[1752310228562,3.34,162.29,162.23,3.36]
[1752310228957,3.34,162.28,162.23,3.36]
[1752310229467,6.1595,162.28,162.24,9.5207]
[1752310229666,3.34,162.27,162.24,3.36]
[1752310230069,3.34,162.27,162.24,9.5208]
[1752310230468,3.34,162.27,162.21,5.15070787]
[1752310230660,3.34,162.27,162.23,3.36]
[1752310231060,3.34,162.26,162.23,9.521]
[1752310231260,3.34,162.26,162.21,5.69759652]
[1752310231467,3.34,162.26,162.21,2.33759652]
[1752310231766,3.34,162.25,162.21,5.69759652]
[1752310232163,3.34,162.24,162.21,11.85939652]
[1752310232365,3.34,162.24,162.21,9.5218]
[1752310233269,3.34,162.24,162.21,6.1618]
[1752310233472,6.161,162.24,162.21,6.1618]
[1752310233670,3.34,162.23,162.2,9.5224]
[1752310234369,3.38189769,162.23,162.2,9.5224]
[1752310235071,3.34,162.22,162.2,9.5224]
[1752310235570,3.34,162.22,162.18,2.33759652]
[1752310235571,3.34,162.22,162.21,9.5221]
[1752310236272,3.34,162.22,162.21,3.36]
[1752310236472,3.34,162.22,162.15,5.15070787]
[1752310236674,3.34,162.22,162.18,9.5231]
[1752310236867,3.34,162.22,162.17,2.33759652]
[1752310237074,3.37967024,162.22,162.17,5.69759652]
[1752310237569,3.37967024,162.22,162.18,3.36]
[1752310238168,3.34,162.2,162.12,5.15070787]
[1752310238371,3.34,162.2,162.14,2.33759652]
[1752310238578,3.34,162.2,162.16,6.1639]
[1752310238579,6.1627,162.2,162.16,6.1639]
[1752310238776,3.34,162.19,162.16,9.5239]
[1752310238967,3.38285469,162.19,162.17,3.36]
[1752310239168,6.20575469,162.19,162.16,3.36]
[1752310239473,3.34,162.18,162.16,3.36]
[1752310240570,0.04285469,162.19,162.16,3.36]
[1752310240766,0.04285469,162.19,162.18,3.36]
[1752310240976,0.04285469,162.19,162.18,9.5232]
[1752310241176,3.34,162.22,162.18,3.36]
[1752310241470,3.34,162.22,162.2,9.5223]
[1752310241675,3.34,162.22,162.21,3.36]
[1752310242277,3.34,162.22,162.2,3.36]
[1752310242680,3.34,162.22,162.18,3.36]
[1752310243177,3.34,162.22,162.19,3.36]
[1752310244082,6.1623,162.21,162.19,3.36]
[1752310244379,3.34,162.2,162.19,3.36]
[1752310245575,3.46,162.19,162.18,3.35]
[1752310246680,9.6228,162.19,162.18,3.35]
[1752310246975,9.6228,162.19,162.16,6.1639]
[1752310247185,3.46,162.18,162.16,3.35]
[1752310247586,3.46,162.17,162.14,2.33759652]
[1752310247972,3.46,162.17,162.15,6.1643]
[1752310248182,3.46,162.17,162.16,3.35]
[1752310248582,3.46,162.17,162.16,9.514]
[1752310248986,3.46,162.17,162.16,3.35]
[1752310251185,3.46,162.17,162.16,9.514]
[1752310252196,3.46,162.17,162.16,3.35]
[1752310252794,3.46,162.17,162.16,9.514]
[1752310253794,3.46,162.17,162.16,3.35]
[1752310255496,9.6236,162.17,162.16,3.35]
[1752310255797,3.46,162.17,162.16,3.35]
[1752310256697,3.46,162.17,162.1,532.22]
[1752310256902,3.46,162.17,162.14,3.35]
[1752310257595,3.46,162.16,162.14,9.5145]
[1752310257796,3.46,162.15,162.14,6.1645]
[1752310258397,3.46,162.16,162.14,6.1645]
[1752310258595,3.46,162.16,162.15,3.35]
[1752310260399,6.164,162.16,162.13,6.165]
[1752310260704,3.46,162.15,162.13,9.515]
[1752310260904,3.46,162.15,162.14,3.35]
[1752310261496,3.46,162.15,162.14,9.5147]
[1752310262903,3.50175352,162.16,162.15,9.5143]
[1752310263105,3.46,162.18,162.16,3.35]
[1752310263303,3.46,162.18,162.17,6.1636]
[1752310263498,3.46,162.18,162.17,9.5136]
[1752310263805,3.46,162.19,162.17,9.5136]
[1752310263993,3.46,162.19,162.18,3.35]
[1752310264600,9.6228,162.19,162.18,3.35]
[1752310265101,3.46,162.23,162.18,3.35]
[1752310265402,3.46,162.27,162.19,2.33759652]
[1752310265598,6.1607,162.25,162.2,3.35]
[1752310265803,3.46,162.23,162.2,3.35]
[1752310265999,180.39759652,162.28,162.23,6.161]
[1752310266199,3.46,162.24,162.23,9.511]
[1752310266401,3.46,162.28,162.24,3.35]
[1752310266607,3.46,162.33,162.28,3.35]
[1752310266798,5.79793956,162.33,162.27,3.35]
[1752310267000,3.46,162.3,162.29,0.04635853]
[1752310267301,9.6187,162.3,162.26,3.35]
[1752310267503,3.46,162.3,162.27,3.35]
[1752310267805,3.46,162.3,162.28,0.03900393]
[1752310268107,9.619,162.29,162.28,0.03900393]
[1752310269203,5.08638389,162.36,162.28,0.03900393]
[1752310269405,3.46,162.32,162.28,3.38900393]
[1752310269710,3.46,162.32,162.28,3.35]
[1752310270209,3.46,162.32,162.28,3.38951793]
[1752310270805,3.46,162.3,162.28,3.38951793]
[1752310271009,3.46,162.29,162.28,0.03951793]
[1752310271504,3.46,162.29,162.28,3.38951793]
[1752310271705,3.46,162.29,162.28,9.54891793]
[1752310271908,3.46,162.31,162.29,3.35]
[1752310272711,3.46,162.31,162.3,3.35]
[1752310274110,9.6183,162.31,162.3,3.35]
[1752310275122,2.3378653,162.33,162.28,0.03951793]
[1752310275307,2.3378653,162.29,162.28,0.03951793]
[1752310275511,2.3378653,162.29,162.22,2.3378653]
[1752310275512,2.3378653,162.29,162.25,3.6]
[1752310275712,9.4297,162.28,162.27,0.04182982]
[1752310276516,8.35638389,162.36,162.27,3.64182982]
[1752310276715,2.33834052,162.35,162.27,3.64182982]
[1752310276915,3.27,162.32,162.27,3.64182982]
[1752310277110,3.27,162.29,162.26,3.6]
[1752310277313,3.27,162.29,162.28,0.04704185]
[1752310277715,3.27,162.29,162.27,3.6]
[1752310277911,3.27,162.29,162.27,3.64266593]
[1752310279527,3.27,162.28,162.27,3.64266593]
[1752310281328,9.4294,162.28,162.27,0.04266593]
[1752310287829,6.1602,162.26,162.24,3.6]
[1752310288032,3.27,162.25,162.24,3.6]
[1752310289129,3.27,162.25,162.23,0.04667751]
[1752310289530,3.27,162.25,162.23,3.64667751]
[1752310289731,9.4309,162.24,162.23,3.64667751]
[1752310290831,3.27,162.24,162.23,3.64667751]
[1752310292534,9.4309,162.24,162.23,3.64667751]
[1752310294130,9.4309,162.24,162.23,0.04667751]
[1752310297634,3.27,162.24,162.23,3.64667751]
[1752310298137,3.31292936,162.26,162.23,3.64667751]
[1752310298534,3.27,162.25,162.24,3.6]
[1752310299133,9.4305,162.25,162.24,3.6]
[1752310300633,0.04292936,162.26,162.24,3.6]
[1752310300634,3.31292936,162.26,162.24,3.6]
[1752310301230,0.04292936,162.26,162.25,9.7605]
[1752310305641,3.59292936,162.26,162.24,3.32]
[1752310306140,3.59292936,162.26,162.25,3.32]
[1752310307239,9.75312936,162.26,162.25,3.32]
[1752310310334,3.59292936,162.26,162.25,3.32]
[1752310311941,0.04292936,162.26,162.25,3.32]
[1752310312344,9.708,162.32,162.26,3.32]
[1752310312540,3.55,162.32,162.29,3.32]
[1752310313443,3.55,162.32,162.31,3.32]
[1752310314545,9.7079,162.32,162.31,3.32]
[1752310316346,9.7079,162.32,162.3,2.33850495]
[1752310316545,9.7083,162.31,162.3,5.65850495]
[1752310317739,6.1583,162.31,162.3,5.65850495]
[1752310318947,9.708,162.32,162.3,11.81710495]
[1752310319145,9.708,162.32,162.31,3.32]
[1752310319545,3.55,162.32,162.31,3.32]
[1752310320752,9.7077,162.33,162.31,3.32]
[1752310320951,5.09900049,162.39,162.32,2.33648664]
[1752310321244,3.55,162.37,162.33,3.32]
[1752310321749,3.55,162.37,162.34,3.3637583]
[1752310322150,6.1567,162.35,162.34,3.3637583]
[1752310322447,9.7067,162.35,162.34,3.3637583]
[1752310322642,6.1565,162.36,162.34,3.3637583]
[1752310322843,3.55,162.35,162.34,3.3637583]
[1752310323357,9.7067,162.35,162.34,3.3637583]
[1752310323650,9.7067,162.35,162.34,0.0437583]
[1752310324749,3.55,162.34,162.29,3.32]
[1752310325256,3.55,162.3,162.29,3.32]
[1752310326952,3.55,162.29,162.28,3.32]
[1752310327356,3.55,162.29,162.26,5.65752051]
[1752310327554,3.55,162.29,162.27,3.32]
[1752310327555,9.7093,162.29,162.27,3.32]
[1752310327749,3.55,162.28,162.27,3.32]
[1752310331259,3.55,162.28,162.27,9.4798]
[1752310331454,3.55,162.29,162.28,3.32]
[1752310332059,3.55,162.29,162.27,9.4798]
[1752310332252,6.1587,162.3,162.28,3.32]
[1752310332758,6.1587,162.3,162.29,3.32]
[1752310332952,2.33752051,162.33,162.26,6.16]
[1752310332953,6.1592,162.29,162.26,6.16]
[1752310333148,6.1592,162.29,162.27,3.32]
[1752310333353,3.55,162.28,162.26,6.16]
[1752310333553,6.1592,162.29,162.26,6.16]
[1752310333755,3.55,162.28,162.27,6.1598]
[1752310333955,3.55,162.28,162.27,9.4798]
[1752310334258,3.55,162.28,162.27,3.32]
[1752310335561,3.55,162.28,162.27,9.4798]
[1752310335961,3.55,162.28,162.27,3.32]
[1752310336761,9.7094,162.28,162.27,3.32]
[1752310336957,3.55,162.28,162.25,9.7804]
[1752310337163,3.55,162.28,162.26,3.62]
[1752310338671,6.1598,162.27,162.26,3.62]
[1752310338867,9.5798,162.27,162.26,3.62]
[1752310339269,3.42,162.26,162.24,3.62]
[1752310339472,3.42,162.25,162.24,3.62]
[1752310340871,3.42,162.25,162.24,9.7809]
[1752310341679,3.42,162.25,162.24,3.62]
[1752310342473,9.5805,162.25,162.24,3.62]
[1752310342778,3.42,162.24,162.23,3.62]
[1752310346182,9.5809,162.24,162.23,3.62]
[1752310347385,6.1614,162.23,162.2,3.62]
[1752310347582,3.42,162.22,162.2,3.62]
[1752310347781,3.42,162.21,162.2,3.62]
[1752310347982,3.42,162.21,162.2,9.7822]
[1752310348379,3.42,162.21,162.2,3.62]
[1752310349183,9.5821,162.21,162.2,3.62]
[1752310349380,3.42,162.21,162.18,9.7832]
[1752310349583,3.42,162.21,162.18,3.62]
[1752310349779,6.1628,162.2,162.18,3.62]
[1752310349979,3.42,162.19,162.18,3.62]
[1752310350379,3.42,162.19,162.17,5.95752051]
[1752310350984,9.5831,162.19,162.17,5.95752051]
[1752310351286,3.42,162.18,162.17,5.95752051]
[1752310351584,3.42,162.18,162.17,12.12112051]
[1752310351784,3.42,162.18,162.17,3.62]
[1752310355179,3.42,162.24,162.17,3.62]
[1752310355384,3.42,162.24,162.2,3.62]
[1752310355585,3.42,162.27,162.22,3.62]
[1752310355885,3.42,162.27,162.16,2.34043095]
[1752310355886,3.42,162.27,162.24,3.62]
[1752310356086,3.42,162.32,162.26,3.62]
[1752310356878,2.34043095,162.31,162.26,3.62]
[1752310357084,2.34043095,162.31,162.23,2.34043095]
[1752310357085,3.42,162.3,162.24,3.62]
[1752310357672,6.1602,162.26,162.24,3.62]
[1752310357877,3.42,162.25,162.24,3.62]
[1752310364781,6.1605,162.25,162.22,9.7015]
[1752310364985,3.29,162.24,162.22,3.54]
[1752310365390,9.4511,162.24,162.22,3.54]
[1752310365588,3.29,162.23,162.22,3.54]
[1752310367390,6.1607,162.25,162.22,9.7017]
[1752310367587,3.29,162.24,162.23,3.54]
[1752310367988,3.29,162.24,162.23,9.7013]
[1752310368186,3.29,162.28,162.23,3.54]
[1752310369091,6.1602,162.26,162.23,9.7012]
[1752310369288,3.29,162.25,162.24,3.54]
[1752310372989,3.29,162.25,162.24,9.7009]
[1752310373389,3.29,162.26,162.24,9.7009]
[1752310373589,3.29,162.26,162.25,3.54]
[1752310374589,3.29,162.3,162.25,3.54]
[1752310375390,6.1593,162.29,162.26,6.1601]
[1752310375594,3.29,162.28,162.27,3.54]
[1752310376098,3.29,162.31,162.27,6.1595]
[1752310376397,3.29,162.31,162.29,3.54]
[1752310376897,2.33876397,162.35,162.29,3.54]
[1752310377094,3.29,162.34,162.29,3.54]
[1752310377496,3.29,162.34,162.31,3.54]
[1752310377893,6.1575,162.33,162.3,6.1584]
[1752310378093,3.29,162.32,162.31,3.54]
[1752310378794,3.29,162.32,162.31,9.6983]
[1752310379003,3.29,162.33,162.32,3.54]
[1752310380495,3.29,162.33,162.32,9.6979]
[1752310380802,3.29,162.34,162.33,3.54]
[1752310381595,9.4469,162.35,162.33,9.6975]
[1752310381997,9.4469,162.35,162.34,3.54]
[1752310382201,3.29,162.35,162.34,3.54]
[1752310382904,9.4467,162.35,162.34,3.54]
[1752310383500,3.29,162.33,162.31,2.33606286]
[1752310383698,3.29,162.36,162.3,3.54]
[1752310384104,3.29,162.34,162.33,3.54]
[1752310385099,9.4472,162.34,162.33,3.54]
[1752310386405,3.29,162.32,162.31,3.54]
[1752310388511,6.1573,162.34,162.31,9.6983]
[1752310388702,3.29,162.33,162.32,3.54]
[1752310390107,3.29,162.32,162.26,3.54]
[1752310390307,2.33606286,162.29,162.26,3.54]
[1752310390606,3.29,162.27,162.26,3.54]
[1752310391001,3.29,162.29,162.26,3.54]
[1752310391197,3.29,162.29,162.27,6.1595]
[1752310391398,3.29,162.29,162.28,3.54]
[1752310392208,178.5,162.38,162.28,5.87606286]
[1752310392414,3.29,162.35,162.29,3.54]
[1752310392804,2.33606286,162.34,162.29,3.54]
[1752310393004,3.29,162.33,162.29,3.54]
[1752310393206,6.159,162.29,162.24,3.54]
[1752310393410,3.29,162.27,162.26,3.54]
[1752310395116,3.29,162.27,162.26,9.7002]
[1752310399124,2.33606286,162.36,162.27,3.45]
[1752310399424,3.49,162.35,162.29,2.33606286]
[1752310399724,3.49,162.32,162.31,3.45]
[1752310402332,9.6474,162.34,162.31,9.6083]
[1752310402631,3.49,162.33,162.32,3.45]
[1752310406433,3.49,162.35,162.32,3.45]
[1752310406635,3.49,162.37,162.34,5.78606286]
[1752310406839,3.49,162.36,162.35,9.6067]
[1752310407024,3.49,162.41,162.36,3.45]
[1752310407531,3.49,162.38,162.37,3.45]
[1752310408132,9.6456,162.38,162.37,3.45]
[1752310409337,3.49,162.38,162.37,3.45]
[1752310412139,9.6449,162.4,162.37,9.6059]
[1752310412335,3.49,162.39,162.38,3.45]
[1752310412833,3.49,162.38,162.37,3.45]
[1752310413139,3.49,162.38,162.36,8.49226286]
[1752310413341,3.49,162.38,162.37,3.45]
[1752310415941,3.49,162.42,162.37,3.45]
[1752310416135,0.04635098,162.39,162.37,3.45]
[1752310416331,0.04635098,162.39,162.38,6.1556]
[1752310416548,3.49,162.42,162.39,3.45]
[1752310416937,3.49,162.42,162.41,9.6045]
[1752310417253,3.49,162.43,162.42,3.45]
[1752310418035,3.49,162.43,162.42,9.6041]
[1752310421142,3.49,162.43,162.41,0.04553258]
[1752310421343,3.49,162.43,162.41,3.49553258]
[1752310421532,3.49,162.42,162.41,3.49553258]
[1752310421737,3.49,162.42,162.41,9.64993258]
[1752310423438,3.49,162.42,162.41,3.49553258]
[1752310423641,3.49,162.42,162.41,0.04553258]
[1752310424245,9.6441,162.42,162.41,0.04553258]
[1752310427048,3.49,162.42,162.41,3.64553258]
[1752310427548,9.6441,162.42,162.41,3.64553258]
[1752310427751,9.6441,162.42,162.41,0.04553258]
[1752310427945,9.6441,162.42,162.41,3.64553258]
[1752310428647,9.6441,162.42,162.41,0.04553258]
[1752310428843,9.6441,162.42,162.41,3.64553258]
[1752310429056,9.6441,162.42,162.41,0.04553258]
[1752310429242,3.53,162.4,162.37,3.6]
[1752310429445,3.53,162.4,162.36,3.6]
[1752310430145,6.1554,162.39,162.36,3.6]
[1752310430447,6.1554,162.39,162.36,9.7563]
[1752310430649,3.53,162.37,162.36,9.7563]
[1752310435353,6.155,162.4,162.36,6.1563]
[1752310435555,3.53,162.38,162.36,6.1563]
[1752310435953,9.685,162.4,162.37,9.7558]
[1752310436155,3.53,162.39,162.38,3.6]
[1752310440355,3.53,162.39,162.38,9.7556]